fUST/lending_fUST_20251207
["ID","MTS","AMOUNT","RATE_DAILY","PERIOD"]
[396753583,1765104640939,-3e-08,4.796e-05,2]
[396753585,1765104640952,-469.03699351,4.796e-05,2]
[396755724,1765104662676,300.0,4.795e-05,2]
[396755728,1765104662706,300.0,4.795e-05,2]
[396757269,1765104678632,189.9607007,4.157e-05,2]
[396757314,1765104722460,300.0,4.795e-05,2]
[396757315,1765104778607,1200.0,4.795e-05,2]
[396757316,1765104782612,300.0,4.795e-05,2]
[396757317,1765104842452,300.0,4.795e-05,2]
[396757318,1765104902153,300.0,4.795e-05,2]
[396757319,1765104908733,829.0,4.795e-05,2]
[396757321,1765104962292,300.0,4.795e-05,2]
[396757322,1765105022830,300.0,4.795e-05,2]
[396757323,1765105078440,1200.0,4.795e-05,2]
[396757324,1765105082340,300.0,4.795e-05,2]
[396757326,1765105327179,-1076.56010282,4.796e-05,2]
[396757327,1765105329786,-208.23776873,4.796e-05,2]
[396757328,1765105331310,-368.96941892,4.796e-05,2]
[396757329,1765105333463,-189.66796824,4.796e-05,2]
[396757330,1765105336874,-168.39453874,4.796e-05,2]
[396757331,1765105338607,-326.64030813,4.796e-05,2]
[396757332,1765105342438,-241.34626634,4.796e-05,2]
[396757333,1765105344006,-330.85865016,4.796e-05,2]
[396757334,1765105347515,-264.46573326,4.796e-05,2]
[396757335,1765105349646,-212.70034002,4.796e-05,2]
[396757336,1765105351848,-364.36639284,4.796e-05,2]
[396757337,1765105357267,-238.37703034,4.796e-05,2]
[396757338,1765105359583,-204.29992213,4.796e-05,2]
[396757339,1765105361242,-285.62627834,4.796e-05,2]
[396757340,1765105362802,-235.93203711,4.796e-05,2]
[396757341,1765105365440,-215.22290777,4.796e-05,2]
[396757342,1765105368506,-328.25952993,4.796e-05,2]
[396757343,1765105371000,-247.96782124,4.796e-05,2]
[396757344,1765105372714,-165.72456091,4.796e-05,2]
[396757345,1765105374858,-252.03217876,4.796e-05,2]
[396757346,1765105376543,-329.1040965,4.796e-05,2]
[396757347,1765105379557,-309.33909961,4.796e-05,2]
[396757348,1765105386721,-309.91290048,4.796e-05,2]
[396757349,1765105388987,-170.93,4.796e-05,2]
[396757350,1765105390619,-553.15850894,4.796e-05,2]
[396757351,1765105392615,-394.66991705,4.796e-05,2]
[396757352,1765105393986,-231.14574503,4.796e-05,2]
[396757353,1765105397964,-1919.0492993,4.796e-05,2]
[396757354,1765105398043,-10000.01,4.796e-05,2]
[396757355,1765105398154,-10000.01,4.796e-05,2]
[396757356,1765105398301,-10000.01,4.796e-05,2]
[396757357,1765105398422,-10000.01,4.796e-05,2]
[396757358,1765105398556,-10000.01,4.796e-05,2]
[396757359,1765105398707,-10000.01,4.796e-05,2]
[396757360,1765105398743,-270.88781243,4.796e-05,2]
[396757361,1765105398818,-10000.01,4.796e-05,2]
[396757362,1765105399019,-10000.01,4.796e-05,2]
[396757363,1765105399059,-10000.01,4.796e-05,2]
[396757364,1765105399328,-10000.01,4.796e-05,2]
[396757365,1765105399488,-10000.01,4.796e-05,2]
[396757366,1765105399670,-4684.51099547,4.796e-05,2]
[396757367,1765105399695,-630.98800906,4.796e-05,2]
[396757368,1765105400225,-639.73579223,4.898e-05,2]
[396757369,1765105403820,-284.77709223,5e-05,2]
[396757370,1765105405655,-215.22290777,5e-05,2]
[396757371,1765105405680,-360.89258673,5e-05,2]
[396757372,1765105407422,-139.10741327,5e-05,2]
[396757373,1765105407445,-256.59275257,5e-05,2]
[396757374,1765105410180,-231.8385755,5e-05,2]
[396757375,1765105416644,-11.56867193,5e-05,2]
[396757376,1765105416666,-201.1546096,5e-05,2]
[396757377,1765105419705,-154.99,5e-05,2]
[396757378,1765105421829,-143.8553904,5e-05,2]
[396757379,1765105421856,-162.02419285,5e-05,2]
[396757380,1765105423164,-199.75349469,5e-05,2]
[396757381,1765105423194,-500.0,5e-05,2]
[396757382,1765105423222,-500.0,5e-05,2]
[396757383,1765105423249,-500.0,5e-05,2]
[396757384,1765105423278,-500.0,5e-05,2]
[396757385,1765105423305,-185.92925712,5e-05,2]
[396757386,1765105423334,-349.16095451,5e-05,2]
[396757387,1765105423367,-500.0,5e-05,2]
[396757388,1765105423396,-500.0,5e-05,2]
[396757389,1765105423424,-500.0,5e-05,2]
[396757390,1765105423452,-500.0,5e-05,2]
[396757391,1765105423480,-205.72203628,5e-05,2]
[396757392,1765105423648,-118.8785148,5e-05,2]
[396757393,1765105423676,-500.0,5e-05,2]
[396757394,1765105423703,-500.0,5e-05,2]
[396757395,1765105423729,-413.08570494,5e-05,2]
[396757396,1765105423757,-500.0,5e-05,2]
[396757397,1765105423784,-500.0,5e-05,2]
[396757398,1765105423812,-318.46281951,5e-05,2]
[396757399,1765105423840,-500.0,5e-05,2]
[396757400,1765105423874,-500.0,5e-05,2]
[396757401,1765105423904,-500.0,5e-05,2]
[396757402,1765105423933,-500.0,5e-05,2]
[396757403,1765105424037,-611.09387381,5e-05,2]
[396757404,1765105424067,-500.0,5e-05,2]
[396757405,1765105424101,-500.0,5e-05,2]
[396757406,1765105424128,-500.0,5e-05,2]
[396757407,1765105424159,-500.0,5e-05,2]
[396757408,1765105424186,-500.0,5e-05,2]
[396757409,1765105424218,-500.0,5e-05,2]
[396757410,1765105424245,-160.48846021,5e-05,2]
[396757411,1765105424272,-396.338806,5e-05,2]
[396757412,1765105424302,-558.52739909,5e-05,2]
[396757413,1765105424329,-133.31150999,5e-05,2]
[396757414,1765105424412,-280.4899018,5e-05,2]
[396757415,1765105424439,-167.09106483,5e-05,2]
[396757416,1765105424468,-500.0,5e-05,2]
[396757417,1765105424495,-500.0,5e-05,2]
[396757418,1765105424522,-402.28205914,5e-05,2]
[396757419,1765105424548,-489.22646607,5e-05,2]
[396757420,1765105424574,-586.19858821,5e-05,2]
[396757421,1765105424602,-500.0,5e-05,2]
[396757422,1765105424630,-169.0780442,5e-05,2]
[396757423,1765105424658,-500.0,5e-05,2]
[396757424,1765105424687,-500.0,5e-05,2]
[396757425,1765105424718,-311.2777515,5e-05,2]
[396757426,1765105424864,-188.7222485,5e-05,2]
[396757427,1765105424893,-623.22083086,5e-05,2]
[396757428,1765105424924,-500.0,5e-05,2]
[396757429,1765105424955,-500.0,5e-05,2]
[396757430,1765105425183,-500.0,5e-05,2]
[396757431,1765105425213,-500.0,5e-05,2]
[396757432,1765105425241,-500.0,5e-05,2]
[396757433,1765105425270,-500.0,5e-05,2]
[396757434,1765105425298,-500.0,5e-05,2]
[396757435,1765105425325,-500.0,5e-05,2]
[396757436,1765105425475,-500.0,5e-05,2]
[396757437,1765105425502,-500.0,5e-05,2]
[396757438,1765105425529,-500.0,5e-05,2]
[396757439,1765105425558,-500.0,5e-05,2]
[396757440,1765105425586,-500.0,5e-05,2]
[396757441,1765105425613,-500.0,5e-05,2]
[396757442,1765105425641,-500.0,5e-05,2]
[396757443,1765105425668,-500.0,5e-05,2]
[396757444,1765105425694,-500.0,5e-05,2]
[396757445,1765105425721,-500.0,5e-05,2]
[396757446,1765105425901,-500.0,5e-05,2]
[396757447,1765105425929,-500.0,5e-05,2]
[396757448,1765105425956,-500.0,5e-05,2]
[396757449,1765105425983,-500.0,5e-05,2]
[396757450,1765105426010,-500.0,5e-05,2]
[396757451,1765105426038,-500.0,5e-05,2]
[396757452,1765105426066,-383.78192757,5e-05,2]
[396757453,1765105426096,-500.0,5e-05,2]
[396757454,1765105426124,-500.0,5e-05,2]
[396757455,1765105426152,-500.0,5e-05,2]
[396757456,1765105426234,-500.0,5e-05,2]
[396757457,1765105426262,-500.0,5e-05,2]
[396757458,1765105426290,-500.0,5e-05,2]
[396757459,1765105426318,-500.0,5e-05,2]
[396757460,1765105426346,-500.0,5e-05,2]
[396757461,1765105426373,-500.0,5e-05,2]
[396757462,1765105426400,-500.0,5e-05,2]
[396757463,1765105426428,-500.0,5e-05,2]
[396757464,1765105426455,-500.0,5e-05,2]
[396757465,1765105426485,-500.0,5e-05,2]
[396757466,1765105426677,-500.0,5e-05,2]
[396757467,1765105426705,-500.0,5e-05,2]
[396757468,1765105426735,-500.0,5e-05,2]
[396757469,1765105426765,-500.0,5e-05,2]
[396757470,1765105426794,-500.0,5e-05,2]
[396757471,1765105426824,-500.0,5e-05,2]
[396757472,1765105426854,-500.0,5e-05,2]
[396757473,1765105426890,-500.0,5e-05,2]
[396757474,1765105426922,-500.0,5e-05,2]
[396757475,1765105426952,-500.0,5e-05,2]
[396757476,1765105427460,-194.12041675,5e-05,2]
[396757477,1765105429450,-51.74390158,5e-05,2]
[396757478,1765105429475,-254.13568167,5e-05,2]
[396757479,1765105429487,-245.86431833,5e-05,2]
[396757480,1765105429503,-254.13568167,5e-05,2]
[396757481,1765105429515,-245.86431833,5e-05,2]
[396757482,1765105429531,-254.13568167,5e-05,2]
[396757483,1765105429543,-245.86431833,5e-05,2]
[396757484,1765105429559,-0.01,5e-05,2]
[396757485,1765105429751,-155.67299573,4.696e-05,2]
[396757486,1765105431363,-274.75222852,4.696e-05,2]
[396757487,1765105433476,-426.47833192,4.696e-05,2]
[396757488,1765105436073,-10000.01,4.696e-05,2]
[396757489,1765105436232,-10000.01,4.696e-05,2]
[396757490,1765105436441,-10000.01,4.696e-05,2]
[396757491,1765105436599,-10000.01,4.696e-05,2]
[396757492,1765105436727,-206.24418184,4.696e-05,2]
[396757493,1765105436741,-10000.01,4.696e-05,2]
[396757494,1765105438216,-275.72310828,4.696e-05,2]
[396757495,1765105441117,-246.82715909,4.696e-05,2]
[396757497,1765105443557,-152.63293767,4.695e-05,2]
[396757498,1765105444996,-147.36706233,4.695e-05,2]
[396757499,1765105445024,-45.6094467,4.696e-05,2]
[396757500,1765105447237,-182.04172186,4.696e-05,2]
[396757501,1765105502234,300.0,4.695e-05,2]
[396757502,1765105679124,1200.0,4.695e-05,2]
[396757503,1765105742345,300.0,4.695e-05,2]
[396757504,1765105761172,-177.3911276,4.696e-05,2]
[396757505,1765105763707,-175.6907337,4.696e-05,2]
[396757506,1765105768808,-388.1672447,4.696e-05,2]
[396757507,1765105770342,-471.82151088,4.696e-05,2]
[396757508,1765105771920,-174.46935936,4.696e-05,2]
[396757509,1765105773642,-382.04868251,4.696e-05,2]
[396757517,1765105832516,-805.57,4.696e-05,2]
[396757518,1765105832531,-1112.14381274,4.696e-05,2]
[396757519,1765105832545,-2542.82530807,4.696e-05,2]
[396757520,1765105832610,-11495.86128803,4.696e-05,2]
[396757542,1765105838442,-1315.63139838,4.696e-05,2]
[396757549,1765105838496,-2169.78279835,4.696e-05,2]
[396757556,1765105838550,-639.338,4.696e-05,2]
[396757798,1765105841053,-3e-08,4.696e-05,2]
[396758084,1765105843639,-485.18022779,4.696e-05,2]
[396758087,1765105843661,-126.81106588,4.696e-05,2]
[396761414,1765105948677,800.0,4.487e-05,2]
[396761415,1765105948809,800.0,4.611e-05,2]
[396761416,1765105979719,232.0,4.695e-05,2]
[396761417,1765106008553,800.0,4.633e-05,2]
[396761418,1765106008753,800.0,4.526e-05,2]
[396761423,1765106128343,800.0,4.466e-05,2]
[396761424,1765106136252,733.22844016,4.493e-05,2]
[396761425,1765106222648,300.0,4.695e-05,2]
[396761426,1765106248349,800.0,4.63e-05,2]
[396761428,1765106347141,-495.12570538,4.696e-05,2]
[396761429,1765106348707,-453.56366183,4.696e-05,2]
[396761430,1765106350249,-185.07562662,4.696e-05,2]
[396761431,1765106352386,-377.64704026,4.696e-05,2]
[396761432,1765106354938,-194.31825186,4.696e-05,2]
[396761433,1765106357007,-305.55076006,4.696e-05,2]
[396761434,1765106359349,-535.42832318,4.696e-05,2]
[396761435,1765106360843,-151.0,4.696e-05,2]
[396761436,1765106363772,-535.78890942,4.696e-05,2]
[396761437,1765106364992,-157.80546858,4.696e-05,2]
[396761438,1765106366541,-186.78206719,4.696e-05,2]
[396761439,1765106368775,-220.46077197,4.696e-05,2]
[396761440,1765106370466,-166.21,4.696e-05,2]
[396761441,1765106372350,-214.28126907,4.696e-05,2]
[396761442,1765106376858,-278.43984847,4.696e-05,2]
[396761443,1765106393138,-356.83823712,4.696e-05,2]
[396761444,1765106395393,-233.71350141,4.696e-05,2]
[396761445,1765106396935,-283.52142929,4.696e-05,2]
[396761446,1765106398453,-231.27292231,4.696e-05,2]
[396761447,1765106400625,-430.07419803,4.696e-05,2]
[396761448,1765106402709,293.0,4.695e-05,2]
[396761449,1765106402740,-249.4444737,4.696e-05,2]
[396761450,1765106406651,-151.21737776,4.696e-05,2]
[396761451,1765106409468,-165.0719411,4.696e-05,2]
[396761452,1765106413333,-216.31613339,4.696e-05,2]
[396761453,1765106414945,-211.0908018,4.696e-05,2]
[396761454,1765106417873,-206.86885331,4.696e-05,2]
[396761455,1765106417894,-102.68161218,4.701e-05,2]
[396761456,1765106418053,1841.78155984,4.596e-05,2]
[396761457,1765106418082,10000.01,4.596e-05,2]
[396761458,1765106418110,10000.01,4.596e-05,2]
[396761459,1765106418136,10000.01,4.596e-05,2]
[396761460,1765106418161,10000.01,4.596e-05,2]
[396761461,1765106418188,8541.8040855,4.596e-05,2]
[396761462,1765106419459,-167.10304902,4.701e-05,2]
[396761463,1765106437085,-219.16497994,4.701e-05,2]
[396761464,1765106442076,-146.62764573,4.701e-05,2]
[396761465,1765106442103,-250.0,4.999e-05,2]
[396761466,1765106442129,-235.93203711,5e-05,2]
[396761467,1765106442157,-500.0,5e-05,2]
[396761468,1765106442185,-500.0,5e-05,2]
[396761469,1765106442213,-500.0,5e-05,2]
[396761470,1765106442454,-500.0,5e-05,2]
[396761471,1765106442482,-500.0,5e-05,2]
[396761472,1765106442510,-500.0,5e-05,2]
[396761473,1765106442541,-500.0,5e-05,2]
[396761474,1765106442569,-500.0,5e-05,2]
[396761475,1765106442610,-234.89063432,5e-05,2]
[396761476,1765106442743,-265.10936568,5e-05,2]
[396761477,1765106442771,-500.0,5e-05,2]
[396761478,1765106442800,-500.0,5e-05,2]
[396761479,1765106442828,-500.0,5e-05,2]
[396761480,1765106442856,-344.28091543,5e-05,2]
[396761481,1765106442883,-500.0,5e-05,2]
[396761482,1765106442911,-500.0,5e-05,2]
[396761483,1765106442938,-500.0,5e-05,2]
[396761484,1765106442965,-500.0,5e-05,2]
[396761485,1765106442992,-500.0,5e-05,2]
[396761486,1765106443019,-281.22943778,5e-05,2]
[396761487,1765106443169,-218.77056222,5e-05,2]
[396761488,1765106443198,-500.0,5e-05,2]
[396761489,1765106443226,-500.0,5e-05,2]
[396761490,1765106443254,-500.0,5e-05,2]
[396761491,1765106443281,-500.0,5e-05,2]
[396761492,1765106443308,-500.0,5e-05,2]
[396761493,1765106443337,-1094.76296422,5e-05,2]
[396761494,1765106443452,-2372.94294712,5e-05,2]
[396761495,1765106443481,-1786.41819442,5e-05,2]
[396761496,1765106443593,-1681.28771692,5e-05,2]
[396761497,1765106443621,-3169.72865482,5e-05,2]
[396761498,1765106444511,-297.97725652,5e-05,2]
[396761499,1765106444554,-3467.70591134,5e-05,2]
[396761500,1765106444801,-3467.70591134,5e-05,2]
[396761501,1765106445367,-3467.70591134,5e-05,2]
[396761502,1765106445507,-3467.70591134,5e-05,2]
[396761503,1765106451540,-3467.70591134,5e-05,2]
[396761504,1765106451749,-3467.70591134,5e-05,2]
[396761505,1765106452009,-3467.70591134,5e-05,2]
[396761506,1765106452223,-3467.70591134,5e-05,2]
[396761507,1765106452405,-3467.70591134,5e-05,2]
[396761508,1765106452640,-3467.70591134,5e-05,2]
[396761510,1765106476551,-300.0,4.999e-05,2]
[396761511,1765106476581,-3467.70591134,5e-05,2]
[396761512,1765106476767,-3467.70591134,5e-05,2]
[396761513,1765106476920,-3467.70591134,5e-05,2]
[396761515,1765106484216,-3467.70591134,5e-05,2]
[396761516,1765106484367,-3467.70591134,5e-05,2]
[396761517,1765106484513,-3814.47650247,5e-05,2]
[396761518,1765106484634,-3814.47650247,5e-05,2]
[396761519,1765106490435,-3814.47650247,5e-05,2]
[396761520,1765106490556,-3814.47650247,5e-05,2]
[396761521,1765106490611,-583.47988996,5e-05,2]
[396761522,1765106490672,-3230.99661251,5e-05,2]
[396761523,1765106490711,-3538.01677498,5e-05,2]
[396761524,1765106490788,-276.45972749,5e-05,2]
[396761525,1765106490816,-3814.47650247,5e-05,2]
[396761526,1765106490863,-1818.13754008,5e-05,2]
[396761527,1765106497944,500.02,0.000203,120]
[396761528,1765106507894,-1996.33896239,5e-05,2]
[396761529,1765106508182,-2192.85557275,5e-05,2]
[396761530,1765106508222,-1621.62092972,5e-05,2]
[396761531,1765106508260,-500.0,5e-05,2]
[396761532,1765106508287,-500.0,5e-05,2]
[396761533,1765106508318,-500.0,5e-05,2]
[396761534,1765106508347,-500.0,5e-05,2]
[396761535,1765106508377,-500.0,5e-05,2]
[396761536,1765106508404,-500.0,5e-05,2]
[396761537,1765106508432,-500.0,5e-05,2]
[396761538,1765106508462,-500.0,5e-05,2]
[396761539,1765106508489,-500.0,5e-05,2]
[396761540,1765106508517,-482.63239072,5e-05,2]
[396761541,1765106508664,-34.74521856,5e-05,2]
[396761542,1765106517283,500.0185,0.00015,30]
[396761543,1765106588358,10000.01,4.596e-05,2]
[396761544,1765106588386,10000.01,4.596e-05,2]
[396761545,1765106588416,10000.01,4.596e-05,2]
[396761546,1765106588445,10000.01,4.596e-05,2]
[396761547,1765106588474,10000.01,4.596e-05,2]
[396761548,1765106588499,10000.01,4.596e-05,2]
[396761549,1765106588526,10000.01,4.596e-05,2]
[396761550,1765106588553,10000.01,4.596e-05,2]
[396761551,1765106588577,10000.01,4.596e-05,2]
[396761552,1765106588602,10000.01,4.596e-05,2]
[396761553,1765106600392,-207.22561882,4.596e-05,2]
[396761554,1765106603577,-242.3284504,4.596e-05,2]
[396761555,1765106605080,-299.04502074,4.596e-05,2]
[396761556,1765106608545,-287.86783038,4.596e-05,2]
[396761557,1765106611865,-286.49077375,4.596e-05,2]
[396761558,1765106613850,-308.83111444,4.596e-05,2]
[396761559,1765106616698,-257.62322985,4.596e-05,2]
[396761560,1765106619328,-161.57926918,4.596e-05,2]
[396761561,1765106620927,-189.90532999,4.596e-05,2]
[396761562,1765106624764,-371.06659024,4.596e-05,2]
[396761563,1765106626806,-194.61801414,4.596e-05,2]
[396761564,1765106629066,-500.0,4.596e-05,2]
[396761565,1765106631114,-205.85596972,4.596e-05,2]
[396761566,1765106634398,-167.31219132,4.596e-05,2]
[396761567,1765106636540,-255.07335924,4.596e-05,2]
[396761568,1765106638676,-214.86638172,4.596e-05,2]
[396761569,1765106640953,-255.9396853,4.596e-05,2]
[396761570,1765106642970,300.0,4.595e-05,2]
[396761571,1765106650284,-201.71712585,4.596e-05,2]
[396761572,1765106654056,-203.36951046,4.596e-05,2]
[396761573,1765106656155,-316.14918261,4.596e-05,2]
[396761574,1765106657768,-176.32020411,4.596e-05,2]
[396761575,1765106659897,-513.76655817,4.596e-05,2]
[396761576,1765106662959,-236.71399754,4.596e-05,2]
[396761577,1765106665577,-204.81024841,4.596e-05,2]
[396761578,1765106666676,-154.09575476,4.596e-05,2]
[396761579,1765106668299,-192.83436738,4.596e-05,2]
[396761580,1765106670556,-294.37669357,4.596e-05,2]
[396761581,1765106672097,-173.35100915,4.596e-05,2]
[396761582,1765106673562,-189.99216055,4.596e-05,2]
[396761583,1765106676035,-292.39362416,4.596e-05,2]
[396761584,1765106679586,-384.16943563,4.596e-05,2]
[396761585,1765106681754,-350.72220317,4.596e-05,2]
[396761586,1765106684051,-196.80918333,4.596e-05,2]
[396761587,1765106685611,-378.49379308,4.596e-05,2]
[396761588,1765106687592,-202.34422436,4.596e-05,2]
[396761589,1765106689696,-168.89779705,4.596e-05,2]
[396761590,1765106692442,-277.91015139,4.596e-05,2]
[396761591,1765106693894,-319.64084889,4.596e-05,2]
[396761592,1765106694161,-9700.01,4.596e-05,2]
[396761593,1765106694354,-10000.01,4.596e-05,2]
[396761594,1765106694528,-10000.01,4.596e-05,2]
[396761595,1765106694688,-10000.01,4.596e-05,2]
[396761596,1765106695071,-10000.01,4.596e-05,2]
[396761597,1765106695437,-170.90701744,4.596e-05,2]
[396761598,1765106696990,-154.40968752,4.596e-05,2]
[396761599,1765106700217,-164.96790987,4.596e-05,2]
[396761600,1765106701581,-300.0,4.595e-05,2]
[396761601,1765106701638,-9400.01,4.596e-05,2]
[396761602,1765106701684,-10000.01,4.596e-05,2]
[396761603,1765106701786,-10000.01,4.596e-05,2]
[396761604,1765106701899,-262.0,4.595e-05,2]
[396761605,1765106701949,-9476.01,4.596e-05,2]
[396761606,1765106701989,-10000.01,4.596e-05,2]
[396761607,1765106702163,-300.0,4.595e-05,2]
[396761608,1765106702195,-9400.01,4.596e-05,2]
[396761609,1765106702277,-10000.01,4.596e-05,2]
[396761610,1765106702377,-10000.01,4.596e-05,2]
[396761611,1765106702488,-10000.01,4.596e-05,2]
[396761612,1765106702666,-10000.01,4.596e-05,2]
[396761613,1765106702793,-10000.01,4.596e-05,2]
[396761614,1765106702964,-2337.72216278,4.596e-05,2]
[396761615,1765106702986,-5324.56567444,4.596e-05,2]
[396761616,1765106707741,-348.73128974,4.825e-05,2]
[396761617,1765106709649,-184.97312584,4.825e-05,2]
[396761626,1765106720340,-89.16132556,4.825e-05,2]
[396761627,1765106731820,2975.75213574,5e-05,2]
[396761628,1765106731941,2975.75213574,5e-05,2]
[396761629,1765106732241,2975.75213574,5e-05,2]
[396761630,1765106732276,1072.75359278,5e-05,2]
[396761631,1765106732302,1902.99854296,5e-05,2]
[396761632,1765106732590,2975.75213574,5e-05,2]
[396761633,1765106732857,2975.75213574,5e-05,2]
[396761634,1765106733290,2145.50718556,5e-05,2]
[396761635,1765106733313,830.24495018,5e-05,2]
[396761636,1765106733437,2975.75213574,5e-05,2]
[396761637,1765106733519,2975.75213574,5e-05,2]
[396761638,1765106733589,2975.75213574,5e-05,2]
[396761639,1765106733650,242.5086426,5e-05,2]
[396761640,1765106733674,2733.24349314,5e-05,2]
[396761641,1765106733759,2975.75213574,5e-05,2]
[396761642,1765106733803,2975.75213574,5e-05,2]
[396761643,1765106733836,1315.26223538,5e-05,2]
[396761644,1765106733861,1660.48990036,5e-05,2]
[396761645,1765106734002,2975.75213574,5e-05,2]
[396761646,1765106734037,2975.75213574,5e-05,2]
[396761647,1765106734090,2388.01582816,5e-05,2]
[396761648,1765106734115,587.73630758,5e-05,2]
[396761649,1765106734162,2975.75213574,5e-05,2]
[396761650,1765106734337,2975.75213574,5e-05,2]
[396761651,1765106735357,500.0,5e-05,2]
[396761652,1765106735639,500.0,5e-05,2]
[396761653,1765106735685,321.36067132,5e-05,2]
[396761654,1765106739298,520.93835721,5e-05,2]
[396761655,1765106739334,500.0,5e-05,2]
[396761656,1765106739364,174.24403677,5e-05,2]
[396761657,1765106739397,186.0151283,5e-05,2]
[396761658,1765106739433,500.0,5e-05,2]
[396761659,1765106739474,185.26569045,5e-05,2]
[396761660,1765106739530,72.94553689,5e-05,2]
[396761661,1765106739553,248.41513443,5e-05,2]
[396761662,1765106739589,500.0,5e-05,2]
[396761663,1765106739658,500.0,5e-05,2]
[396761664,1765106739729,500.0,5e-05,2]
[396761665,1765106739818,500.0,5e-05,2]
[396761666,1765106739908,500.0,5e-05,2]
[396761667,1765106749412,1711.05747804,5e-05,2]
[396761668,1765106749456,1711.05747804,5e-05,2]
[396761669,1765106749491,1711.05747804,5e-05,2]
[396761670,1765106749526,1711.05747804,5e-05,2]
[396761671,1765106749586,407.36495341,5e-05,2]
[396761672,1765106749610,1303.69252463,5e-05,2]
[396761673,1765106749660,1711.05747804,5e-05,2]
[396761674,1765106749694,1711.05747804,5e-05,2]
[396761675,1765106749739,1711.05747804,5e-05,2]
[396761676,1765106749798,1711.05747804,5e-05,2]
[396761677,1765106749851,1711.05747804,5e-05,2]
[396761678,1765106750575,141.03008517,5e-05,2]
[396761679,1765106750599,1570.02739287,5e-05,2]
[396761680,1765106761036,8429.98260713,4.496e-05,2]
[396761681,1765106761064,10000.01,4.496e-05,2]
[396761682,1765106761091,10000.01,4.496e-05,2]
[396761683,1765106761121,10000.01,4.496e-05,2]
[396761684,1765106761149,10000.01,4.496e-05,2]
[396761685,1765106761176,10000.01,4.496e-05,2]
[396761686,1765106761206,10000.01,4.496e-05,2]
[396761687,1765106767111,-186.32030897,4.496e-05,2]
[396761688,1765106770320,-279.69732835,4.496e-05,2]
[396761689,1765106772843,-500.0,4.496e-05,2]
[396761690,1765106774379,-433.23404987,4.496e-05,2]
[396761691,1765106776432,-238.54535141,4.496e-05,2]
[396761692,1765106779277,-157.90039857,4.496e-05,2]
[396761693,1765106780927,-280.98237022,4.496e-05,2]
[396761694,1765106783381,-155.76528857,4.496e-05,2]
[396761695,1765106786147,-444.17823799,4.496e-05,2]
[396761696,1765106787710,-345.41887085,4.496e-05,2]
[396761697,1765106791301,-204.24019785,4.496e-05,2]
[396761698,1765106793417,-248.75728919,4.496e-05,2]
[396761699,1765106797621,-179.2736605,4.496e-05,2]
[396761700,1765106799354,-204.6337886,4.496e-05,2]
[396761701,1765106801814,-282.46151456,4.496e-05,2]
[396761702,1765106805293,-266.67439883,4.496e-05,2]
[396761703,1765106806833,-280.47319586,4.496e-05,2]
[396761704,1765106814016,-285.11274756,4.496e-05,2]
[396761705,1765106816155,-445.57154497,4.496e-05,2]
[396761706,1765106821334,-179.34100537,4.496e-05,2]
[396761707,1765106822484,300.0,4.495e-05,2]
[396761708,1765106823419,-217.53848544,4.496e-05,2]
[396761709,1765106826525,-241.23703564,4.496e-05,2]
[396761710,1765106829869,-155.48290866,4.496e-05,2]
[396761713,1765106879516,1200.0,4.495e-05,2]
[396761714,1765106882397,300.0,4.495e-05,2]
[396761715,1765106895334,206.86885331,4.396e-05,2]
[396761716,1765106942895,300.0,4.495e-05,2]
[396761717,1765106949423,-7625.48245234,4.496e-05,2]
[396761724,1765107002123,300.0,4.495e-05,2]
[396761725,1765107002668,300.0,4.495e-05,2]
[396761726,1765107003944,300.0,4.495e-05,2]
[396761727,1765107012703,1200.0,4.495e-05,2]
[396761733,1765107032448,-308.09929999,4.496e-05,2]